bitfinex-derivatives/quotes_BTCF0:USTF0_20241214
["timestamp","ask_amount","ask_price","bid_price","bid_amount"]
[1734173475771,0.21807387,101600.0,101590.0,1.89336687]
[1734173477182,0.21807387,101600.0,101590.0,2.12394384]
[1734173477384,0.21807387,101600.0,101590.0,2.24642744]
[1734173477679,0.21807387,101600.0,101590.0,1.89336687]
[1734173478671,0.21807387,101600.0,101590.0,1.89374323]
[1734173480481,0.26728387,101600.0,101590.0,1.89374323]
[1734173482372,0.41489934,101600.0,101590.0,1.89374323]
[1734173483269,0.41489934,101600.0,101590.0,1.89389953]
[1734173483988,0.41489934,101600.0,101590.0,2.2469601]
[1734173487889,0.41489934,101600.0,101590.0,2.24686772]
[1734173492583,0.41489934,101600.0,101590.0,2.24684808]
[1734173493988,0.41489934,101600.0,101590.0,2.18560628]
[1734173494188,0.41489934,101600.0,101590.0,2.24684808]
[1734173495081,0.41489934,101600.0,101590.0,2.18560628]
[1734173495387,0.50595078,101600.0,101590.0,2.06807328]
[1734173495888,0.50595078,101600.0,101590.0,1.17716752]
[1734173496091,0.50595078,101600.0,101590.0,1.64590586]
[1734173496288,0.50595078,101600.0,101590.0,1.17716752]
[1734173496783,0.50595078,101600.0,101590.0,1.35377684]
[1734173497491,0.50595078,101600.0,101590.0,1.29253504]
[1734173497690,0.50595078,101600.0,101590.0,1.35377684]
[1734173499888,0.50595078,101600.0,101590.0,1.29253504]
[1734173500083,0.35833531,101600.0,101590.0,0.75744927]
[1734173502193,0.35833531,101600.0,101590.0,0.70823427]
[1734173502394,0.35833531,101600.0,101590.0,0.53162495]
[1734173503000,0.36805831,101600.0,101590.0,0.53162495]
[1734173504297,0.36805831,101600.0,101590.0,0.58083995]
[1734173504492,0.5154802,101600.0,101590.0,0.58083995]
[1734173516294,0.33825489,101600.0,101590.0,0.58083995]
[1734173516895,0.33825489,101600.0,101590.0,0.75744927]
[1734173517295,0.5154802,101600.0,101590.0,0.58083995]
[1734173518795,0.576722,101600.0,101590.0,0.58083995]
[1734173519013,0.5154802,101600.0,101590.0,0.1104568]
[1734173519800,0.5154802,101600.0,101590.0,0.0612418]
[1734173520195,0.5057572,101600.0,101590.0,0.0612418]
[1734173521300,0.35833531,101600.0,101590.0,0.23785112]
[1734173521505,0.35833531,101600.0,101590.0,0.17660932]
[1734173521708,0.35833531,101600.0,101590.0,0.23785112]
[1734173522301,0.36820861,101600.0,101590.0,0.23785112]
[1734173522611,0.51568846,101600.0,101590.0,0.64786612]
[1734173523012,0.33846315,101600.0,101590.0,0.64786612]
[1734173523198,0.33846315,101600.0,101590.0,0.88339369]
[1734173523597,0.51568846,101600.0,101590.0,0.88339369]
[1734173524108,0.51568846,101600.0,101590.0,0.64786612]
[1734173524309,0.33630861,101600.0,101590.0,0.88339369]
[1734173524508,0.33630861,101600.0,101590.0,0.82215189]
[1734173524713,0.33630861,101600.0,101590.0,0.88339369]
[1734173527008,0.33630861,101600.0,101590.0,0.94669369]
[1734173528712,0.32643531,101600.0,101590.0,0.94669369]
[1734173532209,0.47403438,101600.0,101590.0,0.94669369]
[1734173532618,0.47403438,101600.0,101590.0,1.24046752]
[1734173533810,0.47403438,101600.0,101590.0,1.41693439]
[1734173534214,0.47403438,101600.0,101590.0,1.24046752]
[1734173534515,0.29680907,101600.0,101590.0,1.53468223]
[1734173534817,0.47403438,101600.0,101590.0,1.24046752]
[1734173535016,0.29680907,101600.0,101590.0,1.24046752]
[1734173535220,0.29680907,101600.0,101590.0,1.53468223]
[1734173535409,0.29680907,101600.0,101590.0,1.24046752]
[1734173542923,0.29680907,101600.0,101590.0,1.17922572]
[1734173543224,0.29680907,101600.0,101590.0,1.24046752]
[1734173543426,0.29680907,101600.0,101590.0,1.41686991]
[1734173544128,0.29680907,101600.0,101590.0,1.35356991]
[1734173544819,0.29680907,101600.0,101590.0,1.29232811]
[1734173545022,0.33000907,101600.0,101590.0,1.35356991]
[1734173545417,0.50723438,101600.0,101590.0,0.17641133]
[1734173545621,0.35963531,101600.0,101590.0,0.23765313]
[1734173550822,0.35963531,101600.0,101590.0,0.28686813]
[1734173551425,0.50716323,101600.0,101590.0,0.64766813]
[1734173551830,0.50716059,101600.0,101590.0,0.64766813]
[1734173552126,0.35963531,101600.0,101590.0,0.28686813]
[1734173552633,0.35963531,101600.0,101590.0,0.64766813]
[1734173553031,0.50716277,101600.0,101590.0,0.8831957]
[1734173553224,0.35963531,101600.0,101590.0,0.64766813]
[1734173554035,0.35963531,101600.0,101590.0,0.28686813]
[1734173557031,0.35963531,101600.0,101590.0,0.64766813]
[1734173557229,0.35963531,101600.0,101590.0,0.28686813]
[1734173557430,0.35963531,101600.0,101590.0,0.64766813]
[1734173557631,0.35963531,101600.0,101590.0,0.28686813]
[1734173557828,0.35963531,101600.0,101590.0,0.64766813]
[1734173558027,0.50714851,101600.0,101590.0,0.64766813]
[1734173558232,0.35963531,101600.0,101590.0,0.64766813]
[1734173558640,0.37921226,101600.0,101590.0,0.64766813]
[1734173559128,0.37921226,101600.0,101590.0,0.58642633]
[1734173559325,0.37921226,101600.0,101590.0,0.64766813]
[1734173561338,0.35963531,101600.0,101590.0,0.64766813]
[1734173566229,0.50714887,101600.0,101590.0,0.64766813]
[1734173566634,0.35963531,101600.0,101590.0,0.64766813]
[1734173570638,0.32643531,101600.0,101590.0,0.64766813]
[1734173570856,0.32643531,101600.0,101590.0,0.8831957]
[1734173571142,0.47399984,101600.0,101590.0,0.8831957]
[1734173571445,0.32643531,101600.0,101590.0,0.8831957]
[1734173571634,0.47401038,101600.0,101590.0,0.8831957]
[1734173572236,0.32643531,101600.0,101590.0,0.8831957]
[1734173572636,0.4740233,101600.0,101590.0,0.8831957]
[1734173573242,0.32643531,101600.0,101590.0,0.8831957]
[1734173575235,0.47403585,101600.0,101590.0,0.8831957]
[1734173575440,0.47403585,101600.0,101590.0,0.77098437]
[1734173575645,0.47403585,101600.0,101590.0,1.24136752]
[1734173576445,0.29681054,101600.0,101590.0,1.24136752]
[1734173586055,0.29681054,101600.0,101590.0,1.41788141]
[1734173587051,0.47403585,101600.0,101590.0,1.29243961]
[1734173587263,0.32643531,101600.0,101590.0,0.88329826]
[1734173587560,0.35913531,101600.0,101590.0,0.64777069]
[1734173588454,0.35913531,101600.0,101590.0,0.58652889]
[1734173588655,0.35913531,101600.0,101590.0,0.88329826]
[1734173590859,0.35913531,101600.0,101590.0,0.64777069]
[1734173592460,0.2967647,101600.0,101590.0,0.76802617]
[1734173592657,0.41479193,101600.0,101590.0,1.23675619]
[1734173592858,0.26723723,101600.0,101590.0,1.53395315]
[1734173593267,0.26723723,101600.0,101590.0,1.47271135]
[1734173593465,0.26723723,101600.0,101590.0,1.53395315]
[1734173593654,0.2967647,101600.0,101590.0,1.17777308]
[1734173593859,0.2967647,101600.0,101590.0,1.23901488]
[1734173594968,0.2967647,101600.0,101590.0,0.87821488]
[1734173595163,0.2967647,101600.0,101590.0,1.23901488]
[1734173600563,0.47399001,101600.0,101590.0,1.23901488]
[1734173601968,0.2967647,101600.0,101590.0,1.23901488]
[1734173602765,0.2967647,101600.0,101590.0,0.87821488]
[1734173602965,0.2967647,101600.0,101590.0,1.23901488]
[1734173605173,0.2967647,101600.0,101590.0,0.87821488]
[1734173605564,0.2967647,101600.0,101590.0,1.23901488]
[1734173607773,0.47399001,101600.0,101590.0,1.23901488]
[1734173608564,0.2967647,101600.0,101590.0,1.23901488]
[1734173609770,0.2967647,101600.0,101590.0,0.87821488]
[1734173609961,0.47399001,101600.0,101590.0,1.41553524]
[1734173610778,0.2967647,101600.0,101590.0,1.23901488]
[1734173612462,0.2967647,101600.0,101590.0,1.17691488]
[1734173616178,0.47399001,101600.0,101590.0,1.35345826]
[1734173617876,0.47399001,101600.0,101590.0,1.17691488]
[1734173618480,0.47399001,101600.0,101590.0,0.81611488]
[1734173618678,0.47399001,101600.0,101590.0,1.17691488]
[1734173620978,0.47399001,101600.0,101590.0,0.81611488]
[1734173621273,0.47399001,101600.0,101590.0,1.17691488]
[1734173623381,0.47399001,101600.0,101590.0,0.81611488]
[1734173623585,0.47399001,101600.0,101590.0,1.47112959]
[1734173623988,0.47399001,101600.0,101590.0,1.70623121]
[1734173624391,0.47399001,101600.0,101590.0,1.47112959]
[1734173626294,0.47399001,101600.0,101590.0,1.11032959]
[1734173626694,0.47399001,101600.0,101590.0,1.47112959]
[1734173627599,0.47399001,101600.0,101590.0,1.70617602]
[1734173627986,0.47399001,101600.0,101590.0,1.47112959]
[1734173628390,0.47399001,101600.0,101590.0,1.11032959]
[1734173628591,0.47399001,101600.0,101590.0,1.47112959]
[1734173629892,0.47399001,101600.0,101590.0,1.70617788]
[1734173632297,0.47399001,101600.0,101590.0,1.11032959]
[1734173632489,0.47399001,101600.0,101590.0,1.47112959]
[1734173632685,0.47399001,101600.0,101590.0,1.70617861]
[1734173633292,0.47399001,101600.0,101590.0,1.34537861]
[1734173633496,0.47399001,101600.0,101590.0,1.70617785]
[1734173635190,0.47399001,101600.0,101590.0,1.47112959]
[1734173635699,0.47399001,101600.0,101590.0,1.70616978]
[1734173637997,0.47399001,101600.0,101590.0,1.70618172]
[1734173638498,0.47399001,101600.0,101590.0,1.47112959]
[1734173638993,0.47399001,101600.0,101590.0,1.7061062]
[1734173650604,0.2967647,101600.0,101590.0,1.17712524]
[1734173654204,0.2967647,101600.0,101590.0,0.81632524]
[1734173654402,0.2967647,101600.0,101590.0,0.94163995]
[1734173654613,0.2967647,101600.0,101590.0,1.17712496]
[1734173658701,0.32643531,101600.0,101590.0,1.70538195]
[1734173659411,0.32643531,101600.0,101590.0,1.34458195]
[1734173659612,0.32643531,101600.0,101590.0,1.70538195]
[1734173659809,0.32643531,101600.0,101590.0,1.34458195]
[1734173660113,0.32643531,101600.0,101590.0,1.70538195]
[1734173660716,0.47409848,101600.0,101590.0,1.11053967]
[1734173661013,0.47409848,101600.0,101590.0,1.47133967]
[1734173661311,0.47409848,101600.0,101590.0,1.11053967]
[1734173661616,0.47409848,101600.0,101590.0,1.47133967]
[1734173661814,0.47409848,101600.0,101590.0,1.11053967]
[1734173662116,0.47409848,101600.0,101590.0,1.47133967]
[1734173663413,0.47409848,101600.0,101590.0,1.11053967]
[1734173663611,0.47409848,101600.0,101590.0,1.47133967]
[1734173665809,0.47409848,101600.0,101590.0,1.11053967]
[1734173666009,0.47409848,101600.0,101590.0,1.47133967]
[1734173668119,0.47409848,101600.0,101590.0,1.70521886]
[1734173670716,0.42488848,101600.0,101590.0,1.70521886]
[1734173671611,0.24766317,101600.0,101590.0,1.23585466]
[1734173671926,0.24766317,101600.0,101590.0,1.46951908]
[1734173672219,0.24766317,101600.0,101590.0,1.53076088]
[1734173674319,0.24766317,101600.0,101590.0,1.76605139]
[1734173674822,0.24766317,101600.0,101590.0,1.53076088]
[1734173675010,0.21808058,101600.0,101590.0,1.53076088]
[1734173675210,0.21805425,101600.0,101590.0,1.53076088]
[1734173676116,0.21805425,101600.0,101590.0,1.46951908]
[1734173676824,0.21805425,101600.0,101590.0,1.53076088]
[1734173678711,0.26726425,101600.0,101590.0,1.40827728]
[1734173678924,0.14921,101600.0,101590.0,0.94163995]
[1734173679521,0.41489008,101600.0,101590.0,1.40970906]
[1734173679716,0.44769008,101600.0,101590.0,1.17673615]
[1734173680027,0.32967317,101600.0,101590.0,0.706353]
[1734173685325,0.3396737,101600.0,101590.0,0.88269608]
[1734173693732,0.3396737,101600.0,101590.0,0.82145428]
[1734173693927,0.3396737,101600.0,101590.0,0.88269608]
[1734173694527,0.51689901,101600.0,101590.0,0.88269608]
[1734173694732,0.36923584,101600.0,101590.0,0.64759988]
[1734173695325,0.51674992,101600.0,101590.0,0.64759988]
[1734173696425,0.36923584,101600.0,101590.0,0.64759988]
[1734173697330,0.51673691,101600.0,101590.0,0.64759988]
[1734173697521,0.36923584,101600.0,101590.0,0.64759988]
[1734173697830,0.43047764,101600.0,101590.0,0.53714308]
[1734173698032,0.36923584,101600.0,101590.0,0.59838488]
[1734173698632,0.5167306,101600.0,101590.0,0.23758488]
[1734173698822,0.5779724,101600.0,101590.0,0.17634308]
[1734173699027,0.43047764,101600.0,101590.0,0.17634308]
[1734173700526,0.049215,101590.0,101580.0,1.36294777]
[1734173700727,0.37649068,101590.0,101580.0,1.40602203]
[1734173700931,0.25850149,101590.0,101580.0,1.40602203]
[1734173701137,0.25850149,101590.0,101580.0,1.39615449]
[1734173701629,0.25850149,101590.0,101580.0,1.39615641]
[1734173702236,0.25850149,101590.0,101580.0,1.11798403]
[1734173703435,0.25850149,101590.0,101580.0,1.05674223]
[1734173703737,0.25850149,101590.0,101580.0,1.11798403]
[1734173704439,0.25850149,101590.0,101580.0,1.06876803]
[1734173704639,0.31974329,101590.0,101580.0,0.53714308]
[1734173704833,0.31974329,101590.0,101580.0,0.17634308]
[1734173705033,0.049219,101580.0,101570.0,1.35358623]
[1734173705338,0.46832262,101580.0,101570.0,0.0435798]
[1734173705832,0.29109731,101580.0,101570.0,0.17634308]
[1734173706033,0.049224,101570.0,101560.0,1.35456797]
[1734173706228,0.31458797,101570.0,101560.0,1.39617416]
[1734173706428,0.16715146,101570.0,101560.0,1.16107796]
[1734173706630,0.22839326,101570.0,101560.0,1.16107796]
[1734173706934,0.16715146,101570.0,101560.0,1.16107796]
[1734173707336,0.25554729,101570.0,101560.0,1.11799503]
[1734173707935,0.31678909,101570.0,101560.0,1.11799503]
[1734173708149,0.22839326,101570.0,101560.0,1.11799503]
[1734173708344,0.31677528,101570.0,101560.0,1.11799503]
[1734173708840,0.31677528,101570.0,101560.0,1.16107829]
[1734173709032,0.31677528,101570.0,101560.0,1.09983649]
[1734173709339,0.22839326,101570.0,101560.0,0.98473521]
[1734173709533,0.31676395,101570.0,101560.0,1.16107926]
[1734173709932,0.31676395,101570.0,101560.0,0.98473618]
[1734173710133,0.31676395,101570.0,101560.0,0.87426738]
[1734173710539,0.29299326,101570.0,101560.0,0.40388423]
[1734173710737,0.44042977,101570.0,101560.0,0.40388423]
[1734173711145,0.44042977,101570.0,101560.0,0.3608]
[1734173711443,0.29299326,101570.0,101560.0,0.3608]
[1734173711839,0.38132369,101570.0,101560.0,0.3608]
[1734173712141,0.38132032,101570.0,101560.0,0.3608]
[1734173712838,0.38132032,101570.0,101560.0,0.4220418]
[1734173713037,0.29299326,101570.0,101560.0,0.4220418]
[1734173713341,0.29299326,101570.0,101560.0,0.3608]
[1734173713641,0.29299326,101570.0,101560.0,0.4220418]
[1734173714537,0.38128688,101570.0,101560.0,0.3608]
[1734173715943,0.049229,101560.0,101550.0,1.01727573]
[1734173716139,0.19875941,101560.0,101550.0,0.87426924]
[1734173716332,0.31668687,101560.0,101550.0,0.04308609]
[1734173716529,0.049234,101550.0,101540.0,0.97266295]
[1734173716745,0.13751379,101550.0,101540.0,1.01575066]
[1734173718641,0.13751379,101550.0,101540.0,0.97266295]
[1734173719141,0.13751379,101550.0,101540.0,1.01575515]
[1734173719442,0.049234,101550.0,101540.0,1.03390475]
[1734173720146,0.13751379,101550.0,101540.0,1.03390475]
[1734173720346,0.049234,101550.0,101540.0,1.03390475]
[1734173722848,0.049234,101550.0,101540.0,1.21024783]
[1734173723549,0.08821957,101570.0,101560.0,0.049229]
[1734173723855,0.11792746,101590.0,101580.0,0.049219]
[1734173724041,0.11792746,101590.0,101580.0,0.8933026]
[1734173724243,0.50927597,101600.0,101590.0,0.51959815]
[1734173724443,0.42308126,101600.0,101590.0,0.88039815]
[1734173724751,0.36183946,101600.0,101590.0,0.88039815]
[1734173725552,0.42308126,101600.0,101590.0,0.88039815]
[1734173726050,0.36183946,101600.0,101590.0,0.88039815]
[1734173727047,0.36183946,101600.0,101590.0,0.94163995]
[1734173733255,0.36183946,101600.0,101590.0,0.4712568]
[1734173733456,0.42308126,101600.0,101590.0,0.4712568]
[1734173734855,0.42308126,101600.0,101590.0,0.410015]
[1734173736059,0.36183946,101600.0,101590.0,0.410015]
[1734173737961,0.049215,101590.0,101580.0,0.88040115]
[1734173738162,0.1104568,101590.0,101580.0,0.410018]
[1734173738457,0.049215,101590.0,101580.0,0.4712598]
[1734173740359,0.36184046,101600.0,101590.0,0.049215]
[1734173740655,0.36184046,101600.0,101590.0,0.1104568]
[1734173741965,0.42308226,101600.0,101590.0,0.1104568]
[1734173742965,0.42308226,101600.0,101590.0,0.049215]
[1734173744767,0.36184046,101600.0,101590.0,0.049215]
[1734173745068,0.049215,101590.0,101580.0,0.4712578]
[1734173748354,0.16714246,101590.0,101580.0,0.4712578]
[1734173750467,0.16714246,101590.0,101580.0,0.64705223]
[1734173752472,0.19665151,101590.0,101580.0,0.64705223]
[1734173753470,0.20629794,101590.0,101580.0,0.70566493]
[1734173754074,0.20629794,101590.0,101580.0,0.88205602]
[1734173754075,0.38352325,101590.0,101580.0,0.88205602]
[1734173754875,0.20629794,101590.0,101580.0,0.82081422]
[1734173763487,0.38352325,101590.0,101580.0,0.82077042]
[1734173765485,0.38352325,101590.0,101580.0,0.64442313]
[1734173767185,0.38352325,101590.0,101580.0,0.70566493]
[1734173767382,0.23608674,101590.0,101580.0,0.70566493]
[1734173767792,0.22644031,101590.0,101580.0,0.34486493]
[1734173767993,0.22644031,101590.0,101580.0,0.70566493]
[1734173768189,0.19688142,101590.0,101580.0,0.99987964]
[1734173769084,0.19688142,101590.0,101580.0,1.23783299]
[1734173769289,0.19688142,101590.0,101580.0,1.23782094]
[1734173771483,0.19688142,101590.0,101580.0,1.23775214]
[1734173774391,0.19688142,101590.0,101580.0,1.29899394]
[1734173774901,0.19688142,101590.0,101580.0,1.76937709]
[1734173775700,0.19688142,101590.0,101580.0,1.76941894]
[1734173776400,0.19688142,101590.0,101580.0,1.70817714]
[1734173777894,0.19688142,101590.0,101580.0,1.47026279]
[1734173779197,0.19688142,101590.0,101580.0,1.70828758]
[1734173779505,0.19688142,101590.0,101580.0,1.47388045]
[1734173780593,0.19688142,101590.0,101580.0,1.41263865]
[1734173781301,0.19688142,101590.0,101580.0,1.70911493]
[1734173782205,0.19688142,101590.0,101580.0,1.70912447]
[1734173784590,0.19688142,101590.0,101580.0,1.70906357]
[1734173786896,0.19688142,101590.0,101580.0,1.47109968]
[1734173787199,0.19688142,101590.0,101580.0,1.17688497]
[1734173787402,0.19688142,101590.0,101580.0,1.23812677]
[1734173787903,0.19688142,101590.0,101580.0,1.28120154]
[1734173788199,0.19688142,101590.0,101580.0,1.23812677]
[1734173790406,0.19688142,101590.0,101580.0,1.53234148]
[1734173790605,0.19688142,101590.0,101580.0,2.73812677]
[1734173791202,0.19688142,101590.0,101580.0,1.23812677]
[1734173792309,0.14766642,101590.0,101580.0,1.76961713]
[1734173793610,0.14766642,101590.0,101580.0,1.53437311]
[1734173797413,0.19688142,101590.0,101580.0,1.41188951]
[1734173797605,0.19688142,101590.0,101580.0,1.53450089]
[1734173798002,0.19688142,101590.0,101580.0,1.41201729]
[1734173798212,0.19688142,101590.0,101580.0,1.47325909]
[1734173798916,0.19688142,101590.0,101580.0,1.53450089]
[1734173802118,0.19688142,101590.0,101580.0,1.53525502]
[1734173804014,0.19688142,101590.0,101580.0,1.53243948]
[1734173804221,0.19688142,101590.0,101580.0,0.94164095]
[1734173804719,0.19688142,101590.0,101580.0,1.17699439]
[1734173807308,0.37410673,101590.0,101580.0,1.17699439]
[1734173807514,0.19688142,101590.0,101580.0,1.17699439]
[1734173813517,0.19688142,101590.0,101580.0,1.23823619]
[1734173813828,0.19688142,101590.0,101580.0,1.17699439]
[1734173815019,0.19688142,101590.0,101580.0,1.11575259]
[1734173815219,0.19688142,101590.0,101580.0,1.17699439]
[1734173821025,0.37410673,101590.0,101580.0,1.22006904]
[1734173821234,0.19688142,101590.0,101580.0,1.22006904]
[1734173821628,0.19688142,101590.0,101580.0,1.51428375]
[1734173822435,0.19688142,101590.0,101580.0,1.75179282]
[1734173823142,0.19688142,101590.0,101580.0,1.51428375]
[1734173823847,0.19688142,101590.0,101580.0,1.75071857]
[1734173824032,0.19688142,101590.0,101580.0,1.76888572]
[1734173824234,0.19688142,101590.0,101580.0,1.70764392]
[1734173824428,0.19688142,101590.0,101580.0,1.76888572]
[1734173828330,0.19688142,101590.0,101580.0,1.76888781]
[1734173831636,0.19688142,101590.0,101580.0,1.76885766]
[1734173834436,0.19688142,101590.0,101580.0,1.70761586]
[1734173835543,0.19688142,101590.0,101580.0,1.75068899]
[1734173835843,0.19688142,101590.0,101580.0,1.70761586]
[1734173836241,0.19688142,101590.0,101580.0,1.64637406]
[1734173836440,0.19688142,101590.0,101580.0,1.70761586]
[1734173837244,0.19688142,101590.0,101580.0,1.4712091]
[1734173840742,0.19688142,101590.0,101580.0,1.1104091]
[1734173840960,0.19688142,101590.0,101580.0,1.8320091]
[1734173842349,0.19688142,101590.0,101580.0,1.53779439]
[1734173842642,0.19688142,101590.0,101580.0,1.47655259]
[1734173842837,0.22644031,101590.0,101580.0,1.47655259]
[1734173843034,0.28768211,101590.0,101580.0,1.47655259]
[1734173843239,0.22644031,101590.0,101580.0,1.53779439]
[1734173845542,0.19682382,101590.0,101580.0,1.53779439]
[1734173847240,0.37404913,101590.0,101580.0,1.53779439]
[1734173847945,0.37404913,101590.0,101580.0,1.71433219]
[1734173848346,0.37404913,101590.0,101580.0,1.53779439]
[1734173848648,0.37404913,101590.0,101580.0,1.47655259]
[1734173848848,0.37404913,101590.0,101580.0,1.53779439]
[1734173849941,0.37404913,101590.0,101580.0,1.71432992]
[1734173850646,0.37404913,101590.0,101580.0,1.53779439]
[1734173851549,0.37404913,101590.0,101580.0,1.71432773]
[1734173854253,0.22644031,101590.0,101580.0,0.99272773]
[1734173854457,0.22644031,101590.0,101580.0,0.75737429]
[1734173854647,0.22644031,101590.0,101580.0,0.99272773]
[1734173855448,0.22644031,101590.0,101580.0,0.75737429]
[1734173856253,0.22644031,101590.0,101580.0,1.05693249]
[1734173856448,0.22644031,101590.0,101580.0,1.30431173]
[1734173856656,0.28768211,101590.0,101580.0,0.53733334]
[1734173857155,0.28768211,101590.0,101580.0,0.17653334]
[1734173864363,0.049219,101580.0,101570.0,1.36322889]
[1734173864663,0.049219,101580.0,101570.0,1.40630811]
[1734173864664,0.19675505,101580.0,101570.0,1.40630811]
[1734173870564,0.19675505,101580.0,101570.0,1.22977477]
[1734173870859,0.19675505,101580.0,101570.0,1.18669555]
[1734173871062,0.20649521,101580.0,101570.0,1.18669555]
[1734173875559,0.20649521,101580.0,101570.0,1.36319298]
[1734173875961,0.20649521,101580.0,101570.0,1.40627226]
[1734173877666,0.20649521,101580.0,101570.0,1.3965761]
[1734173878055,0.23769521,101580.0,101570.0,1.3353343]
[1734173878265,0.47616232,101580.0,101570.0,0.86496884]
[1734173878566,0.50646232,101580.0,101570.0,0.86496884]
[1734173879765,0.92850412,101580.0,101570.0,0.45496942]
[1734173879962,0.96050412,101580.0,101570.0,0.41189014]
[1734173880271,0.96055549,101580.0,101570.0,0.41189014]
[1734173880457,0.75172627,101580.0,101570.0,0.41189014]
[1734173880762,0.75172627,101580.0,101570.0,0.1765367]
[1734173882465,0.65848447,101580.0,101570.0,0.1765367]
[1734173882770,0.71972627,101580.0,101570.0,0.1765367]
[1734173882959,0.75242627,101580.0,101570.0,0.1765367]
[1734173883359,0.049224,101570.0,101560.0,1.35354009]
[1734173883560,0.19677862,101570.0,101560.0,1.39662396]
[1734173884566,0.19677862,101570.0,101560.0,1.17700339]
[1734173892574,0.31478272,101570.0,101560.0,1.17700339]
[1734173892970,0.1672281,101570.0,101560.0,1.17700339]
[1734173893779,0.31478272,101570.0,101560.0,1.17700339]
[1734173894670,0.31478272,101570.0,101560.0,1.22008722]
[1734173894969,0.1672281,101570.0,101560.0,1.22008722]
[1734173895379,0.1672281,101570.0,101560.0,1.51414714]
[1734173895678,0.1672281,101570.0,101560.0,1.51421809]
[1734173897376,0.1672281,101570.0,101560.0,1.74952053]
[1734173897572,0.1672281,101570.0,101560.0,1.51425093]
[1734173897969,0.1672281,101570.0,101560.0,1.74953143]
[1734173898178,0.1672281,101570.0,101560.0,1.22001428]
[1734173898369,0.1672281,101570.0,101560.0,1.51422899]
[1734173899186,0.1672281,101570.0,101560.0,1.74948704]
[1734173900684,0.1672281,101570.0,101560.0,1.57544834]
[1734173903276,0.1180041,101570.0,101560.0,1.57544834]
[1734173905983,0.1180041,101570.0,101560.0,1.57477772]
[1734173906380,0.20653702,101570.0,101560.0,1.57477772]
[1734173906982,0.20653702,101570.0,101560.0,1.92783829]
[1734173907188,0.08853292,101570.0,101560.0,1.63362358]
[1734173907385,0.08853292,101570.0,101560.0,1.92752324]
[1734173907581,0.08853292,101570.0,101560.0,1.63362358]
[1734173907787,0.08853292,101570.0,101560.0,3.13362358]
[1734173908178,0.08853292,101570.0,101560.0,3.42752803]
[1734173908494,0.20653702,101570.0,101560.0,3.07446746]
[1734173908685,0.08853292,101570.0,101560.0,3.42752803]
[1734173910488,0.08853292,101570.0,101560.0,1.92752803]
[1734173910693,0.20653702,101570.0,101560.0,1.57446746]
[1734173912293,0.20653702,101570.0,101560.0,1.57410026]
[1734173912988,0.1180041,101570.0,101560.0,1.53101643]
[1734173913193,0.1180041,101570.0,101560.0,1.40853283]
[1734173913386,0.1180041,101570.0,101560.0,1.53101643]
[1734173913783,0.1180041,101570.0,101560.0,1.40853283]
[1734173913992,0.1180041,101570.0,101560.0,1.53101643]
[1734173918687,0.20651991,101570.0,101560.0,1.53101643]
[1734173919199,0.20651991,101570.0,101560.0,1.57410026]
[1734173919390,0.20651991,101570.0,101560.0,1.92716083]
[1734173919588,0.20651991,101570.0,101560.0,1.57410026]
[1734173919783,0.20651991,101570.0,101560.0,1.92716083]
[1734173920596,0.20651991,101570.0,101560.0,1.57410026]
[1734173921095,0.20652997,101570.0,101560.0,1.57410026]
[1734173921999,0.1180041,101570.0,101560.0,1.57410026]
[1734173925897,0.1672281,101570.0,101560.0,1.57410026]
[1734173926895,0.31478272,101570.0,101560.0,1.53101643]
[1734173927293,0.19677862,101570.0,101560.0,1.76695808]
[1734173927600,0.19677862,101570.0,101560.0,1.53212669]
[1734173927799,0.19677862,101570.0,101560.0,1.76690116]
[1734173928405,0.31484955,101570.0,101560.0,1.53157067]
[1734173928695,0.19677862,101570.0,101560.0,1.76688627]
[1734173928907,0.19677862,101570.0,101560.0,1.5321118]
[1734173930498,0.19677862,101570.0,101560.0,1.57519445]
[1734173932393,0.19677862,101570.0,101560.0,1.28129]
[1734173934399,0.19677862,101570.0,101560.0,1.23820735]
[1734173934600,0.19677862,101570.0,101560.0,1.28129001]
[1734173935000,0.31482656,101570.0,101560.0,1.28129001]
[1734173935597,0.19677862,101570.0,101560.0,1.28129001]
[1734173935907,0.19677862,101570.0,101560.0,1.23820735]
[1734173936303,0.31481948,101570.0,101560.0,1.23820735]
[1734173937207,0.19677862,101570.0,101560.0,1.23820735]
[1734173939415,0.19677862,101570.0,101560.0,1.17696555]
[1734173941401,0.19677862,101570.0,101560.0,1.51395266]
[1734173941914,0.19677862,101570.0,101560.0,1.57519446]
[1734173943013,0.19677862,101570.0,101560.0,1.15880641]
[1734173943311,0.19677862,101570.0,101560.0,1.22004821]
[1734173944604,0.19677862,101570.0,101560.0,1.28129001]
[1734173944804,0.19677862,101570.0,101560.0,1.22004821]
[1734173946011,0.19677862,101570.0,101560.0,1.28129001]
[1734173946207,0.19677862,101570.0,101560.0,1.22004821]
[1734173947401,0.19677862,101570.0,101560.0,0.85924821]
[1734173947608,0.19677862,101570.0,101560.0,1.22004821]
[1734173949801,0.19677862,101570.0,101560.0,0.85924821]
[1734173950401,0.19677862,101570.0,101560.0,1.22004821]
[1734173951313,0.19677862,101570.0,101560.0,1.51395266]
[1734173952314,0.19677862,101570.0,101560.0,1.74886715]
[1734173952711,0.19677862,101570.0,101560.0,1.15315266]
[1734173953016,0.19677862,101570.0,101560.0,1.51395266]
[1734173953525,0.19677862,101570.0,101560.0,1.74885663]
[1734173954113,0.19677862,101570.0,101560.0,1.51395266]
[1734173954413,0.19677862,101570.0,101560.0,1.74878957]
[1734173954716,0.19677862,101570.0,101560.0,1.38798957]
[1734173955117,0.19677862,101570.0,101560.0,1.74878957]
[1734173957427,0.37400393,101570.0,101560.0,1.74878957]
[1734173957720,0.37400393,101570.0,101560.0,1.38798957]
[1734173958118,0.37400393,101570.0,101560.0,1.74878957]
[1734173958316,0.37400393,101570.0,101560.0,1.38798957]
[1734173958516,0.37400393,101570.0,101560.0,1.74878957]
[1734173959319,0.37400393,101570.0,101560.0,1.38798957]
[1734173959516,0.37400393,101570.0,101560.0,1.74878957]
[1734173959911,0.37400393,101570.0,101560.0,1.38798957]
[1734173960622,0.37400393,101570.0,101560.0,1.74886271]
[1734173964020,0.37400393,101570.0,101560.0,1.38806271]
[1734173964228,0.37400393,101570.0,101560.0,1.74886271]
[1734173964428,0.37400393,101570.0,101560.0,1.38806271]
[1734173964628,0.37400393,101570.0,101560.0,1.74886271]
[1734173965431,0.37400393,101570.0,101560.0,1.38806271]
[1734173965634,0.37400393,101570.0,101560.0,1.74886271]
[1734173966424,0.19677862,101570.0,101560.0,1.51354711]
[1734173966625,0.19677862,101570.0,101560.0,1.47046445]
[1734173967433,0.19677862,101570.0,101560.0,1.5135457]
[1734173968128,0.19677862,101570.0,101560.0,1.47046445]
[1734173968536,0.19677862,101570.0,101560.0,1.70590662]
[1734173968744,0.19677862,101570.0,101560.0,1.74898947]
[1734173969339,0.19677862,101570.0,101560.0,1.5135473]
[1734173970034,0.19677862,101570.0,101560.0,1.74899144]
[1734173971134,0.37400393,101570.0,101560.0,1.74899105]
[1734173971444,0.19677862,101570.0,101560.0,1.5135473]
[1734173971642,0.19677862,101570.0,101560.0,1.7489756]
[1734173972942,0.19677862,101570.0,101560.0,1.5135473]